[Event "Live Chess"]
[Site "Chess.com"]
[Date "2024.06.01"]
[Round "-"]
[White "f4nomore"]
[Black "Harry_Li"]
[Result "0-1"]
[WhiteElo "1196"]
[BlackElo "2174"]
[TimeControl "300"]
[EndTime "9:40:10 PDT"]
[Termination "Harry_Li won by resignation"]

1. b3 {[%clk 0:04:58.2]} 1... e5 {[%clk 0:04:56.8]} 2. Bb2 {[%clk 0:04:57.2]}
2... Nc6 {[%clk 0:04:56.5]} 3. e3 {[%clk 0:04:56.2]} 3... d5 {[%clk 0:04:54.7]}
4. Ne2 {[%clk 0:04:55.2]} 4... Bd6 {[%clk 0:04:49.8]} 5. g3 {[%clk 0:04:54]}
5... Nf6 {[%clk 0:04:47.7]} 6. Bg2 {[%clk 0:04:53.3]} 6... O-O {[%clk
0:04:47.4]} 7. O-O {[%clk 0:04:52.1]} 7... Bf5 {[%clk 0:04:45.4]} 8. f4 {[%clk
0:04:47.4]} 8... e4 {[%clk 0:04:39.4]} 9. a3 {[%clk 0:04:41.9]} 9... a5 {[%clk
0:04:37.6]} 10. Nbc3 {[%clk 0:04:35.6]} 10... Re8 {[%clk 0:04:30.9]} 11. Nb5
{[%clk 0:04:34]} 11... Bc5 {[%clk 0:04:29.8]} 12. Nbd4 {[%clk 0:04:28.6]} 12...
Bd7 {[%clk 0:04:23.7]} 13. Nxc6 {[%clk 0:04:20.3]} 13... bxc6 {[%clk 0:04:20.7]}
14. Nd4 {[%clk 0:04:17.8]} 14... Bd6 {[%clk 0:04:09.8]} 15. c3 {[%clk
0:04:09.8]} 15... c5 {[%clk 0:04:08.4]} 16. Ne2 {[%clk 0:04:00]} 16... Rb8
{[%clk 0:03:51.3]} 17. Rb1 {[%clk 0:03:56.9]} 17... Qc8 {[%clk 0:03:47.4]} 18.
b4 {[%clk 0:03:50.8]} 18... axb4 {[%clk 0:03:43.2]} 19. cxb4 {[%clk 0:03:49]}
19... cxb4 {[%clk 0:03:42.2]} 20. Bxf6 {[%clk 0:03:45.5]} 20... gxf6 {[%clk
0:03:40.4]} 21. axb4 {[%clk 0:03:41.3]} 21... Rxb4 {[%clk 0:03:37.4]} 22. Rxb4
{[%clk 0:03:38.2]} 22... Bxb4 {[%clk 0:03:37.3]} 23. Nd4 {[%clk 0:03:35.5]}
23... Bf8 {[%clk 0:03:30.5]} 24. f5 {[%clk 0:03:30.2]} 24... Kh8 {[%clk
0:03:18.8]} 25. d3 {[%clk 0:03:22.8]} 25... c5 {[%clk 0:03:17.5]} 26. Ne2 {[%clk
0:03:12]} 26... Bxf5 {[%clk 0:03:15.9]} 27. dxe4 {[%clk 0:02:58.2]} 27... dxe4
{[%clk 0:03:06.9]} 28. Nf4 {[%clk 0:02:53.4]} 28... Qd8 {[%clk 0:02:46.2]} 29.
Qh5 {[%clk 0:02:49.5]} 29... Bg6 {[%clk 0:02:41.5]} 30. Qh4 {[%clk 0:02:36.5]}
30... f5 {[%clk 0:02:33.1]} 31. Qh3 {[%clk 0:01:57.5]} 31... c4 {[%clk
0:02:23.7]} 32. Ne2 {[%clk 0:01:52.1]} 32... Qd3 {[%clk 0:02:16.6]} 33. Nf4
{[%clk 0:01:31.3]} 33... Qxe3+ {[%clk 0:02:15.2]} 34. Kh1 {[%clk 0:01:30.2]}
34... c3 {[%clk 0:02:05.6]} 35. Nxg6+ {[%clk 0:01:27.6]} 35... fxg6 {[%clk
0:02:04.2]} 36. Qh4 {[%clk 0:01:23.8]} 36... Bg7 {[%clk 0:01:55.6]} 37. g4
{[%clk 0:00:51.2]} 37... c2 {[%clk 0:01:51.6]} 38. Qe1 {[%clk 0:00:45.2]} 38...
Qxe1 {[%clk 0:01:47.8]} 39. Rxe1 {[%clk 0:00:43.6]} 39... Rc8 {[%clk 0:01:43.6]}
40. Rc1 {[%clk 0:00:41.9]} 40... Bb2 {[%clk 0:01:41.8]} 41. gxf5 {[%clk
0:00:38]} 41... Bxc1 {[%clk 0:01:39.4]} 42. fxg6 {[%clk 0:00:35.2]} 42... Bh6
{[%clk 0:01:36]} 43. gxh7 {[%clk 0:00:30.1]} 43... c1=Q+ {[%clk 0:01:34.3]} 0-1

[Event "Live Chess"]
[Site "Chess.com"]
[Date "2024.06.01"]
[Round "-"]
[White "DoctorMantisTobogganMD"]
[Black "Queensandpawns"]
[Result "0-1"]
[WhiteElo "2206"]
[BlackElo "2469"]
[TimeControl "300"]
[EndTime "9:40:17 PDT"]
[Termination "Queensandpawns won by checkmate"]

1. e4 {[%clk 0:04:58.8]} 1... e5 {[%clk 0:04:58.1]} 2. Nc3 {[%clk 0:04:58.2]}
2... Nf6 {[%clk 0:04:58]} 3. Bc4 {[%clk 0:04:57.2]} 3... Bc5 {[%clk 0:04:57.5]}
4. d3 {[%clk 0:04:56.2]} 4... O-O {[%clk 0:04:56.9]} 5. f4 {[%clk 0:04:55.5]}
5... d6 {[%clk 0:04:55.7]} 6. Nf3 {[%clk 0:04:53.4]} 6... Ng4 {[%clk 0:04:54.8]}
7. Rf1 {[%clk 0:04:51.3]} 7... exf4 {[%clk 0:04:53]} 8. Bxf4 {[%clk 0:04:50.3]}
8... Nc6 {[%clk 0:04:49.7]} 9. h3 {[%clk 0:04:45.9]} 9... Ne3 {[%clk 0:04:48.7]}
10. Bxe3 {[%clk 0:04:44.7]} 10... Bxe3 {[%clk 0:04:48.6]} 11. Qe2 {[%clk
0:04:44.3]} 11... Bh6 {[%clk 0:04:47.7]} 12. g4 {[%clk 0:04:42.4]} 12... Ne5
{[%clk 0:04:43.2]} 13. Nxe5 {[%clk 0:04:37]} 13... dxe5 {[%clk 0:04:43.1]} 14.
Qf2 {[%clk 0:04:28.5]} 14... Be6 {[%clk 0:04:40.4]} 15. Bxe6 {[%clk 0:04:25.6]}
15... fxe6 {[%clk 0:04:40.3]} 16. Qxf8+ {[%clk 0:04:24.7]} 16... Qxf8 {[%clk
0:04:40.2]} 17. Rxf8+ {[%clk 0:04:23.9]} 17... Rxf8 {[%clk 0:04:40.1]} 18. Ke2
{[%clk 0:04:23.1]} 18... Bf4 {[%clk 0:04:35.6]} 19. Rf1 {[%clk 0:04:16.6]} 19...
c6 {[%clk 0:04:35.5]} 20. Na4 {[%clk 0:04:08.3]} 20... b6 {[%clk 0:04:30.9]} 21.
Nc3 {[%clk 0:04:04]} 21... Kf7 {[%clk 0:04:28.6]} 22. d4 {[%clk 0:03:56.7]}
22... Ke7 {[%clk 0:04:22.1]} 23. dxe5 {[%clk 0:03:47.8]} 23... Bxe5 {[%clk
0:04:22]} 24. Rxf8 {[%clk 0:03:46.9]} 24... Kxf8 {[%clk 0:04:21.9]} 25. Nd1
{[%clk 0:03:46.2]} 25... Ke7 {[%clk 0:04:20.5]} 26. c3 {[%clk 0:03:45.5]} 26...
Kf6 {[%clk 0:04:19.9]} 27. Kf3 {[%clk 0:03:40.4]} 27... Kg5 {[%clk 0:04:18.9]}
28. Ne3 {[%clk 0:03:38.3]} 28... Bc7 {[%clk 0:04:17.5]} 29. Nc4 {[%clk
0:03:35.5]} 29... Kh4 {[%clk 0:04:15.5]} 30. Kg2 {[%clk 0:03:34.3]} 30... b5
{[%clk 0:04:13.1]} 31. Nd2 {[%clk 0:03:32]} 31... Kg5 {[%clk 0:04:12]} 32. Kf3
{[%clk 0:03:30.7]} 32... Kh4 {[%clk 0:04:11.7]} 33. Kg2 {[%clk 0:03:30]} 33...
Kg5 {[%clk 0:04:01.3]} 34. Kf3 {[%clk 0:03:28]} 34... Kf6 {[%clk 0:03:58.2]} 35.
c4 {[%clk 0:03:21.5]} 35... Ke5 {[%clk 0:03:56.8]} 36. cxb5 {[%clk 0:03:20.4]}
36... cxb5 {[%clk 0:03:56.7]} 37. Nb3 {[%clk 0:03:15.2]} 37... Bb6 {[%clk
0:03:52.4]} 38. h4 {[%clk 0:03:10.7]} 38... a5 {[%clk 0:03:51.1]} 39. g5 {[%clk
0:03:01.8]} 39... a4 {[%clk 0:03:41.4]} 40. Nc1 {[%clk 0:03:00.6]} 40... Kd4
{[%clk 0:03:38.4]} 41. h5 {[%clk 0:02:51.9]} 41... b4 {[%clk 0:03:37.1]} 42. g6
{[%clk 0:02:45]} 42... hxg6 {[%clk 0:03:35.6]} 43. hxg6 {[%clk 0:02:44.9]} 43...
a3 {[%clk 0:03:34.8]} 44. bxa3 {[%clk 0:02:43.6]} 44... bxa3 {[%clk 0:03:34.7]}
45. Ne2+ {[%clk 0:02:00]} 45... Ke5 {[%clk 0:03:12.7]} 46. Nc3 {[%clk
0:01:56.4]} 46... Bd4 {[%clk 0:03:09.3]} 47. Nb5 {[%clk 0:01:53.9]} 47... Bb2
{[%clk 0:03:08.7]} 48. Ke3 {[%clk 0:01:46.8]} 48... Kf6 {[%clk 0:03:06.8]} 49.
Nc7 {[%clk 0:01:37.7]} 49... e5 {[%clk 0:03:04.1]} 50. Kf3 {[%clk 0:01:31.1]}
50... Kxg6 {[%clk 0:03:02.7]} 51. Kg4 {[%clk 0:01:30.5]} 51... Kf6 {[%clk
0:03:00.3]} 52. Nd5+ {[%clk 0:01:29.8]} 52... Ke6 {[%clk 0:02:58.6]} 53. Kg5
{[%clk 0:01:29.3]} 53... Kd6 {[%clk 0:02:55.3]} 54. Kg6 {[%clk 0:01:27.7]} 54...
Kc5 {[%clk 0:02:54.6]} 55. Kxg7 {[%clk 0:01:26.8]} 55... Kd4 {[%clk 0:02:54.2]}
56. Nf6 {[%clk 0:01:25.9]} 56... Kd3 {[%clk 0:02:51.7]} 57. Kg6 {[%clk
0:01:23.3]} 57... Kc2 {[%clk 0:02:50.8]} 58. Nd5 {[%clk 0:01:18.9]} 58... Kb1
{[%clk 0:02:47.5]} 59. Nb4 {[%clk 0:01:05.3]} 59... Bc3 {[%clk 0:02:45.6]} 60.
Nd5 {[%clk 0:00:56.8]} 60... Ba5 {[%clk 0:02:32.1]} 61. Kf5 {[%clk 0:00:41.5]}
61... Kxa2 {[%clk 0:02:30.9]} 62. Kxe5 {[%clk 0:00:35.1]} 62... Kb2 {[%clk
0:02:29.6]} 63. Ne3 {[%clk 0:00:28.2]} 63... Bc3+ {[%clk 0:02:28]} 64. Kd5
{[%clk 0:00:23.3]} 64... a2 {[%clk 0:02:27.9]} 65. Nd1+ {[%clk 0:00:18.8]} 65...
Kb3 {[%clk 0:02:26]} 66. Nxc3 {[%clk 0:00:17.3]} 66... Kxc3 {[%clk 0:02:25.5]}
67. e5 {[%clk 0:00:17.2]} 67... a1=Q {[%clk 0:02:25.2]} 68. e6 {[%clk 0:00:17]}
68... Qa8+ {[%clk 0:02:24.9]} 69. Kd6 {[%clk 0:00:16.2]} 69... Qe8 {[%clk
0:02:24.8]} 70. e7 {[%clk 0:00:15.7]} 70... Kd4 {[%clk 0:02:24.7]} 71. Ke6
{[%clk 0:00:15.5]} 71... Ke4 {[%clk 0:02:20.9]} 72. Kf6 {[%clk 0:00:14.9]} 72...
Kd5 {[%clk 0:02:20.4]} 73. Kg5 {[%clk 0:00:13.3]} 73... Kd6 {[%clk 0:02:20.3]}
74. Kf6 {[%clk 0:00:12.6]} 74... Qxe7+ {[%clk 0:02:20.2]} 75. Kg6 {[%clk
0:00:12.1]} 75... Qe6+ {[%clk 0:02:20.1]} 76. Kh5 {[%clk 0:00:11.4]} 76... Ke7
{[%clk 0:02:20]} 77. Kg5 {[%clk 0:00:10.1]} 77... Qg8+ {[%clk 0:02:19.5]} 78.
Kh4 {[%clk 0:00:10]} 78... Qg7 {[%clk 0:02:18.6]} 79. Kh5 {[%clk 0:00:09.9]}
79... Kf6 {[%clk 0:02:16.8]} 80. Kh4 {[%clk 0:00:09.8]} 80... Kf5 {[%clk
0:02:16.4]} 81. Kh3 {[%clk 0:00:09.7]} 81... Kf4 {[%clk 0:02:15.8]} 82. Kh4
{[%clk 0:00:09.6]} 82... Qh7# {[%clk 0:02:15.1]} 0-1

[Event "Live Chess"]
[Site "Chess.com"]
[Date "2024.06.01"]
[Round "-"]
[White "alexholowczak"]
[Black "MagnersCarlsberg2870"]
[Result "0-1"]
[WhiteElo "1451"]
[BlackElo "1881"]
[TimeControl "300"]
[EndTime "9:40:17 PDT"]
[Termination "MagnersCarlsberg2870 won by resignation"]

1. e4 {[%clk 0:04:54.9]} 1... e5 {[%clk 0:04:57.3]} 2. Nf3 {[%clk 0:04:53.5]}
2... Nc6 {[%clk 0:04:56]} 3. Bc4 {[%clk 0:04:52.4]} 3... Nf6 {[%clk 0:04:54.6]}
4. Nc3 {[%clk 0:04:49.8]} 4... Bc5 {[%clk 0:04:52.9]} 5. O-O {[%clk 0:04:48.4]}
5... O-O {[%clk 0:04:51.9]} 6. d3 {[%clk 0:04:46.7]} 6... d6 {[%clk 0:04:51]} 7.
Bg5 {[%clk 0:04:43.7]} 7... h6 {[%clk 0:04:50.1]} 8. Bh4 {[%clk 0:04:42.4]} 8...
Bg4 {[%clk 0:04:49.1]} 9. Nd5 {[%clk 0:04:33.9]} 9... g5 {[%clk 0:04:44.8]} 10.
Nxf6+ {[%clk 0:04:31.1]} 10... Qxf6 {[%clk 0:04:43]} 11. Bg3 {[%clk 0:04:29.2]}
11... Nd4 {[%clk 0:04:41.9]} 12. c3 {[%clk 0:04:10]} 12... Nxf3+ {[%clk
0:04:40.4]} 13. gxf3 {[%clk 0:04:08.4]} 13... Bxf3 {[%clk 0:04:39.7]} 14. Qd2
{[%clk 0:04:06.6]} 14... h5 {[%clk 0:04:37.6]} 15. b4 {[%clk 0:03:58.8]} 15...
Bb6 {[%clk 0:04:29.3]} 16. a4 {[%clk 0:03:49.9]} 16... a5 {[%clk 0:04:27.3]} 17.
bxa5 {[%clk 0:03:41.6]} 17... Rxa5 {[%clk 0:04:26.3]} 18. d4 {[%clk 0:03:32.9]}
18... h4 {[%clk 0:04:25]} 19. dxe5 {[%clk 0:03:29.2]} 19... dxe5 {[%clk
0:04:24]} 20. Rfb1 {[%clk 0:02:59.4]} 20... hxg3 {[%clk 0:04:22.8]} 21. hxg3
{[%clk 0:02:58.2]} 21... Qh6 {[%clk 0:04:21.9]} 0-1

[Event "Live Chess"]
[Site "Chess.com"]
[Date "2024.06.01"]
[Round "-"]
[White "ALEX_UA_69"]
[Black "Enhard"]
[Result "1-0"]
[WhiteElo "1776"]
[BlackElo "1457"]
[TimeControl "300"]
[EndTime "9:40:30 PDT"]
[Termination "ALEX_UA_69 won by resignation"]

1. e4 {[%clk 0:04:57.5]} 1... e6 {[%clk 0:04:57.4]} 2. c4 {[%clk 0:04:56.3]}
2... d5 {[%clk 0:04:55.5]} 3. cxd5 {[%clk 0:04:55]} 3... exd5 {[%clk 0:04:54.6]}
4. e5 {[%clk 0:04:54.3]} 4... Nc6 {[%clk 0:04:51]} 5. Nf3 {[%clk 0:04:53.3]}
5... Bg4 {[%clk 0:04:47.8]} 6. Bb5 {[%clk 0:04:51]} 6... Bxf3 {[%clk 0:04:45.7]}
7. Qxf3 {[%clk 0:04:49.3]} 7... Ne7 {[%clk 0:04:44]} 8. O-O {[%clk 0:04:46.9]}
8... a6 {[%clk 0:04:43]} 9. Bxc6+ {[%clk 0:04:45.4]} 9... Nxc6 {[%clk
0:04:41.9]} 10. d3 {[%clk 0:04:43.6]} 10... Be7 {[%clk 0:04:38.8]} 11. Nc3
{[%clk 0:04:42.2]} 11... O-O {[%clk 0:04:30.2]} 12. Qxd5 {[%clk 0:04:38.8]}
12... Qxd5 {[%clk 0:04:27.7]} 13. Nxd5 {[%clk 0:04:37.9]} 13... Bd8 {[%clk
0:04:24.7]} 14. Bf4 {[%clk 0:04:33.3]} 14... Nd4 {[%clk 0:04:20.9]} 15. Nc3
{[%clk 0:04:19.9]} 15... g5 {[%clk 0:04:19.4]} 16. Be3 {[%clk 0:04:18.7]} 16...
Nc6 {[%clk 0:04:13.1]} 17. d4 {[%clk 0:04:15.8]} 17... Nb4 {[%clk 0:04:11.8]}
18. Rac1 {[%clk 0:04:12]} 18... Nd3 {[%clk 0:04:06.8]} 19. Rc2 {[%clk
0:04:09.4]} 19... Nb4 {[%clk 0:03:58.1]} 20. Rd2 {[%clk 0:04:06.7]} 20... c6
{[%clk 0:03:57]} 21. a3 {[%clk 0:04:05.4]} 21... Nd5 {[%clk 0:03:49.8]} 22. Nxd5
{[%clk 0:04:04.5]} 22... cxd5 {[%clk 0:03:49.7]} 23. Rc2 {[%clk 0:04:03.6]}
23... h6 {[%clk 0:03:25.1]} 24. Rfc1 {[%clk 0:04:00.8]} 24... Bb6 {[%clk
0:03:21.9]} 25. b4 {[%clk 0:03:53]} 25... Rab8 {[%clk 0:03:19.4]} 26. h3 {[%clk
0:03:50.5]} 26... Rfe8 {[%clk 0:03:12.5]} 27. Kf1 {[%clk 0:03:48.5]} 27... Kg7
{[%clk 0:02:56.7]} 28. f3 {[%clk 0:03:39.1]} 28... f6 {[%clk 0:02:53.9]} 29.
exf6+ {[%clk 0:03:31]} 29... Kxf6 {[%clk 0:02:52.8]} 30. Kf2 {[%clk 0:03:30.3]}
30... Ke6 {[%clk 0:02:42.3]} 31. Re2 {[%clk 0:03:27.4]} 31... Kd7 {[%clk
0:02:36.1]} 32. Rec2 {[%clk 0:03:22.5]} 32... Rbc8 {[%clk 0:02:21.4]} 33. Rxc8
{[%clk 0:03:19.8]} 33... Rxc8 {[%clk 0:02:21.3]} 34. Rxc8 {[%clk 0:03:18.7]}
34... Kxc8 {[%clk 0:02:20.9]} 35. Ke2 {[%clk 0:03:18]} 35... Kd7 {[%clk
0:02:18.4]} 36. g3 {[%clk 0:03:16.5]} 36... Bd8 {[%clk 0:02:13.8]} 37. f4 {[%clk
0:03:13.6]} 37... Ke6 {[%clk 0:02:12.8]} 38. Kf3 {[%clk 0:03:12.3]} 38... Kf5
{[%clk 0:02:10.5]} 39. g4+ {[%clk 0:03:10.8]} 39... Kg6 {[%clk 0:02:09.4]} 40.
f5+ {[%clk 0:03:09.2]} 40... Kf7 {[%clk 0:02:07.1]} 41. Ke2 {[%clk 0:03:06.8]}
41... Bf6 {[%clk 0:02:05.8]} 42. Kd3 {[%clk 0:03:05.8]} 42... Ke8 {[%clk
0:02:03.4]} 43. Kc3 {[%clk 0:03:05.1]} 43... Kd7 {[%clk 0:02:02.6]} 44. b5
{[%clk 0:03:04.4]} 44... Kc7 {[%clk 0:01:55.9]} 45. Kb4 {[%clk 0:03:02.2]} 45...
Kb6 {[%clk 0:01:54.2]} 46. bxa6 {[%clk 0:03:00.9]} 46... bxa6 {[%clk 0:01:52.6]}
47. a4 {[%clk 0:02:57.7]} 47... Be7+ {[%clk 0:01:49]} 48. Kb3 {[%clk 0:02:55.1]}
48... Kc6 {[%clk 0:01:43.7]} 49. Bf2 {[%clk 0:02:48.1]} 49... Bf6 {[%clk
0:01:42.1]} 50. Kc3 {[%clk 0:02:43.4]} 50... Be7 {[%clk 0:01:36.8]} 51. Kd3
{[%clk 0:02:39.1]} 51... Bf6 {[%clk 0:01:30.2]} 52. Ke3 {[%clk 0:02:37.4]} 52...
Kb6 {[%clk 0:01:28.9]} 53. Be1 {[%clk 0:02:34.9]} 53... Kc6 {[%clk 0:01:24.7]}
54. Bc3 {[%clk 0:02:33.4]} 54... Kd7 {[%clk 0:01:19.2]} 55. Kd3 {[%clk
0:02:30.7]} 55... Kc6 {[%clk 0:01:18.3]} 56. Kc2 {[%clk 0:02:29.8]} 56... Kb6
{[%clk 0:01:10.6]} 57. Kb3 {[%clk 0:02:28.7]} 57... Be7 {[%clk 0:00:56.1]} 58.
Bb4 {[%clk 0:02:24.9]} 58... Bf6 {[%clk 0:00:53.9]} 59. Kc3 {[%clk 0:02:22]}
59... Kc6 {[%clk 0:00:51.9]} 60. Bf8 {[%clk 0:02:19.7]} 60... Kb6 {[%clk
0:00:41.8]} 61. Bxh6 {[%clk 0:02:16.4]} 61... Ka5 {[%clk 0:00:41.1]} 62. Bf8
{[%clk 0:02:15]} 62... Kxa4 {[%clk 0:00:39.7]} 63. Bc5 {[%clk 0:02:09.9]} 63...
Kb5 {[%clk 0:00:37.9]} 64. Kb3 {[%clk 0:02:07.7]} 64... a5 {[%clk 0:00:36.7]}
65. Kc3 {[%clk 0:02:03.2]} 65... a4 {[%clk 0:00:35.8]} 66. Ba3 {[%clk
0:02:01.8]} 66... Kc6 {[%clk 0:00:29.6]} 67. Kb4 {[%clk 0:01:58.8]} 67... Bxd4
{[%clk 0:00:27.9]} 68. Kxa4 {[%clk 0:01:57.6]} 68... Bf6 {[%clk 0:00:26.7]} 69.
Kb3 {[%clk 0:01:56.1]} 69... d4 {[%clk 0:00:23.3]} 70. Kc2 {[%clk 0:01:54.2]}
70... Kd5 {[%clk 0:00:22.2]} 71. Kd3 {[%clk 0:01:53.2]} 71... Bg7 {[%clk
0:00:13]} 72. Bb2 {[%clk 0:01:52]} 72... Bf6 {[%clk 0:00:11.6]} 73. Bc1 {[%clk
0:01:49.5]} 73... Ke5 {[%clk 0:00:09.4]} 74. Bd2 {[%clk 0:01:45.9]} 74... Kd5
{[%clk 0:00:07.5]} 75. Be1 {[%clk 0:01:44.2]} 1-0

[Event "Live Chess"]
[Site "Chess.com"]
[Date "2024.06.01"]
[Round "-"]
[White "LL220284LL"]
[Black "ACM42"]
[Result "1-0"]
[WhiteElo "2581"]
[BlackElo "2204"]
[TimeControl "300"]
[EndTime "9:40:31 PDT"]
[Termination "LL220284LL won on time"]

1. Nf3 {[%clk 0:04:58.8]} 1... g6 {[%clk 0:04:57]} 2. g3 {[%clk 0:04:57.5]} 2...
Bg7 {[%clk 0:04:56.2]} 3. Bg2 {[%clk 0:04:56.1]} 3... Nf6 {[%clk 0:04:53.2]} 4.
O-O {[%clk 0:04:54.8]} 4... O-O {[%clk 0:04:52.6]} 5. c4 {[%clk 0:04:52.5]} 5...
c5 {[%clk 0:04:51.6]} 6. Nc3 {[%clk 0:04:43]} 6... Nc6 {[%clk 0:04:51.5]} 7. b3
{[%clk 0:04:38.9]} 7... d5 {[%clk 0:04:41.9]} 8. cxd5 {[%clk 0:04:37.4]} 8...
Nxd5 {[%clk 0:04:40.7]} 9. Bb2 {[%clk 0:04:36.7]} 9... Nxc3 {[%clk 0:04:39.6]}
10. Bxc3 {[%clk 0:04:34.7]} 10... Nd4 {[%clk 0:04:38.4]} 11. e3 {[%clk
0:04:30.4]} 11... Nxf3+ {[%clk 0:04:36.8]} 12. Qxf3 {[%clk 0:04:30.3]} 12... Rb8
{[%clk 0:04:30.2]} 13. Rad1 {[%clk 0:04:21.6]} 13... b5 {[%clk 0:04:18.3]} 14.
d4 {[%clk 0:04:19.5]} 14... c4 {[%clk 0:04:06.8]} 15. bxc4 {[%clk 0:04:14.9]}
15... bxc4 {[%clk 0:04:06.1]} 16. e4 {[%clk 0:04:14.1]} 16... Qd6 {[%clk
0:03:48.2]} 17. e5 {[%clk 0:03:54.5]} 17... Qa6 {[%clk 0:03:44.3]} 18. d5 {[%clk
0:03:50.4]} 18... Bb7 {[%clk 0:03:31.7]} 19. Rd2 {[%clk 0:03:43.4]} 19... Rbd8
{[%clk 0:03:29.8]} 20. Qe3 {[%clk 0:03:39.4]} 20... Qa3 {[%clk 0:03:20.7]} 21.
Rfd1 {[%clk 0:03:35.6]} 21... Rd7 {[%clk 0:03:07.2]} 22. e6 {[%clk 0:03:10.1]}
22... Rd6 {[%clk 0:02:57.8]} 23. exf7+ {[%clk 0:02:51.9]} 23... Rxf7 {[%clk
0:02:56.2]} 24. Bxg7 {[%clk 0:02:50.7]} 24... Qxe3 {[%clk 0:02:54.3]} 25. fxe3
{[%clk 0:02:50.6]} 25... Kxg7 {[%clk 0:02:51.4]} 26. e4 {[%clk 0:02:48.7]} 26...
e6 {[%clk 0:02:38.5]} 27. dxe6 {[%clk 0:02:42.6]} 27... Rxe6 {[%clk 0:02:37.5]}
28. Re1 {[%clk 0:02:26.7]} 28... Rc7 {[%clk 0:02:27.4]} 29. e5 {[%clk 0:02:22]}
29... Bxg2 {[%clk 0:02:24.9]} 30. Kxg2 {[%clk 0:02:21.9]} 30... c3 {[%clk
0:02:22.8]} 31. Rc2 {[%clk 0:02:21.3]} 31... Rc5 {[%clk 0:02:22.1]} 32. Kf3
{[%clk 0:02:19.4]} 32... Rcxe5 {[%clk 0:01:59.8]} 33. Rxe5 {[%clk 0:02:19.3]}
33... Rxe5 {[%clk 0:01:59.2]} 34. Rxc3 {[%clk 0:02:18.9]} 34... a5 {[%clk
0:01:58.7]} 35. a4 {[%clk 0:02:17.2]} 35... Kf6 {[%clk 0:01:44.9]} 36. Rc6+
{[%clk 0:02:13.4]} 36... Kf5 {[%clk 0:01:41.3]} 37. Rb6 {[%clk 0:02:12]} 37...
Rd5 {[%clk 0:01:35.3]} 38. Ke3 {[%clk 0:02:05.4]} 38... Kg4 {[%clk 0:01:24]} 39.
Rb5 {[%clk 0:02:04.1]} 39... Rd7 {[%clk 0:01:13.7]} 40. Rxa5 {[%clk 0:02:01.1]}
40... Kh3 {[%clk 0:01:13]} 41. Kf4 {[%clk 0:01:57.9]} 41... Kxh2 {[%clk
0:01:11.6]} 42. g4 {[%clk 0:01:56.3]} 42... h6 {[%clk 0:01:07.9]} 43. Rc5 {[%clk
0:01:52.9]} 43... Rd4+ {[%clk 0:01:05.7]} 44. Kf3 {[%clk 0:01:48.9]} 44... Rxa4
{[%clk 0:01:02.6]} 45. Rc6 {[%clk 0:01:45.7]} 45... Ra3+ {[%clk 0:00:56]} 46.
Kf4 {[%clk 0:01:44.5]} 46... g5+ {[%clk 0:00:50.5]} 47. Ke4 {[%clk 0:01:43.9]}
47... Ra4+ {[%clk 0:00:48.3]} 48. Kf5 {[%clk 0:01:42.9]} 48... Rf4+ {[%clk
0:00:46.6]} 49. Ke5 {[%clk 0:01:42.4]} 49... Rxg4 {[%clk 0:00:44.9]} 50. Rxh6+
{[%clk 0:01:42]} 50... Rh4 {[%clk 0:00:41.2]} 51. Ra6 {[%clk 0:01:40.8]} 51...
g4 {[%clk 0:00:39.7]} 52. Ra2+ {[%clk 0:01:36.4]} 52... Kh3 {[%clk 0:00:36.1]}
53. Kf4 {[%clk 0:01:31.8]} 53... g3+ {[%clk 0:00:35.2]} 54. Kf3 {[%clk
0:01:30.9]} 54... Rb4 {[%clk 0:00:34.5]} 55. Ra8 {[%clk 0:01:15.9]} 55... Rb3+
{[%clk 0:00:33.3]} 56. Ke2 {[%clk 0:01:15.3]} 56... Kg2 {[%clk 0:00:32.2]} 57.
Rh8 {[%clk 0:01:13.9]} 57... Rb6 {[%clk 0:00:30.4]} 58. Rf8 {[%clk 0:01:11.7]}
58... Re6+ {[%clk 0:00:29.5]} 59. Kd2 {[%clk 0:01:11.2]} 59... Re5 {[%clk
0:00:27.7]} 60. Kd3 {[%clk 0:01:10]} 60... Kh2 {[%clk 0:00:25.7]} 61. Rh8+
{[%clk 0:01:09.3]} 61... Kg1 {[%clk 0:00:23.6]} 62. Kd4 {[%clk 0:01:09.2]} 62...
Rf5 {[%clk 0:00:21.3]} 63. Ke3 {[%clk 0:01:09.1]} 63... g2 {[%clk 0:00:20.2]}
64. Ke2 {[%clk 0:01:08.4]} 64... Re5+ {[%clk 0:00:18.2]} 65. Kf3 {[%clk
0:01:07.8]} 65... Kf1 {[%clk 0:00:17.5]} 66. Ra8 {[%clk 0:01:06.1]} 66... Rf5+
{[%clk 0:00:16.5]} 67. Ke4 {[%clk 0:01:05.1]} 67... Rf2 {[%clk 0:00:12.7]} 68.
Ra1+ {[%clk 0:01:04.1]} 68... Ke2 {[%clk 0:00:11.8]} 69. Ra2+ {[%clk 0:01:03]}
69... Ke1 {[%clk 0:00:10]} 70. Ra1+ {[%clk 0:01:02.6]} 70... Kd2 {[%clk
0:00:07.3]} 71. Ra2+ {[%clk 0:01:02.5]} 71... Kc3 {[%clk 0:00:06.4]} 72. Rxf2
{[%clk 0:01:01]} 72... g1=Q {[%clk 0:00:05.1]} 73. Rf3+ {[%clk 0:01:00.9]} 73...
Kc4 {[%clk 0:00:03.9]} 74. Rf4 {[%clk 0:01:00.5]} 74... Qe1+ {[%clk 0:00:03]}
75. Kf5+ {[%clk 0:00:59.8]} 75... Kd3 {[%clk 0:00:02.9]} 76. Kf6 {[%clk
0:00:58.2]} 76... Qe8 {[%clk 0:00:01.3]} 77. Rf3+ {[%clk 0:00:57.1]} 77... Kd4
{[%clk 0:00:00.3]} 78. Rf4+ {[%clk 0:00:56.5]} 1-0

[Event "Live Chess"]
[Site "Chess.com"]
[Date "2024.06.01"]
[Round "-"]
[White "Bazzza132"]
[Black "viktorskliarov"]
[Result "0-1"]
[WhiteElo "1700"]
[BlackElo "2638"]
[TimeControl "300"]
[EndTime "9:40:42 PDT"]
[Termination "viktorskliarov won by resignation"]

1. d4 {[%clk 0:04:57.4]} 1... Nf6 {[%clk 0:04:57.3]} 2. c4 {[%clk 0:04:55.9]}
2... e6 {[%clk 0:04:56.3]} 3. Nf3 {[%clk 0:04:53.7]} 3... c5 {[%clk 0:04:54.3]}
4. Nc3 {[%clk 0:04:48.9]} 4... cxd4 {[%clk 0:04:51.8]} 5. Nxd4 {[%clk
0:04:47.5]} 5... Nc6 {[%clk 0:04:51.1]} 6. Bg5 {[%clk 0:04:44.6]} 6... Qa5
{[%clk 0:04:44.6]} 7. Bxf6 {[%clk 0:04:28.7]} 7... gxf6 {[%clk 0:04:43.2]} 8.
Nb5 {[%clk 0:04:20.5]} 8... a6 {[%clk 0:04:24.9]} 9. Nd6+ {[%clk 0:04:12.2]}
9... Ke7 {[%clk 0:04:23.9]} 10. e3 {[%clk 0:03:54.6]} 10... Qe5 {[%clk
0:04:14.7]} 11. Nde4 {[%clk 0:03:19.3]} 11... f5 {[%clk 0:04:00.8]} 12. f4
{[%clk 0:03:07.2]} 12... Qa5 {[%clk 0:03:43.2]} 13. Ng5 {[%clk 0:02:46.2]} 13...
Bg7 {[%clk 0:03:38.1]} 14. Qc2 {[%clk 0:02:32.2]} 14... b6 {[%clk 0:02:40.4]}
15. Bd3 {[%clk 0:02:01]} 15... Bb7 {[%clk 0:02:03.2]} 16. O-O {[%clk 0:01:36.3]}
16... h6 {[%clk 0:01:43.1]} 17. Nf3 {[%clk 0:01:22.8]} 17... Nb4 {[%clk
0:01:40.5]} 18. Qd2 {[%clk 0:01:11.3]} 18... Nxd3 {[%clk 0:01:39.2]} 19. Qxd3
{[%clk 0:01:10.1]} 19... d6 {[%clk 0:01:38.5]} 20. Rfd1 {[%clk 0:00:46.8]} 20...
Rad8 {[%clk 0:01:26.4]} 21. g3 {[%clk 0:00:39.6]} 21... Bxf3 {[%clk 0:01:18.1]}
22. Rd2 {[%clk 0:00:37.6]} 22... Bxc3 {[%clk 0:01:08.6]} 23. bxc3 {[%clk
0:00:34.1]} 23... Qc5 {[%clk 0:01:04.7]} 24. Rf1 {[%clk 0:00:31.3]} 24... Be4
{[%clk 0:01:02.5]} 25. Qe2 {[%clk 0:00:30.3]} 25... h5 {[%clk 0:01:00.5]} 26.
Rfd1 {[%clk 0:00:29.1]} 26... h4 {[%clk 0:00:58.1]} 27. Qf1 {[%clk 0:00:22.5]}
27... hxg3 {[%clk 0:00:52.6]} 28. Rg2 {[%clk 0:00:18.8]} 0-1